fUSD/lending_fUSD_20250606
["ID","MTS","AMOUNT","RATE_DAILY","PERIOD"]
[364642496,1749175138269,208.31,0.0002,4]
[364642497,1749175139398,205.71428571,0.0002,7]
[364642498,1749175307784,349.57,0.00035616,120]
[364642499,1749175352602,10000.0,0.00035616,120]
[364642500,1749175365577,10000.0,0.00035616,120]
[364642501,1749175386941,430.10526,0.0002436,2]
[364642502,1749175386967,430.10526,0.000243,2]
[364642503,1749175387002,345.1965207,0.0002438,2]
[364642504,1749175387024,84.9087493,0.0002438,2]
[364642505,1749175387103,430.10526,0.0002446,2]
[364642506,1749175397391,10000.0,0.00035616,120]
[364642507,1749175419768,2338.7030314,0.00024505,2]
[364642508,1749175437389,4956.0,0.00035616,120]
[364642510,1749175453717,159.16,0.00013699,2]
[364642511,1749175455175,161.21144629,0.00024405,2]
[364642512,1749175474742,7661.0,0.00035616,120]
[364642513,1749175478275,200.0,0.00024497,2]
[364642514,1749175512512,2333.34559441,0.00024,3]
[364642515,1749175512534,2666.65440559,0.00024,3]
[364642516,1749175513091,203.17,0.00035616,120]
[364642517,1749175525505,203.17,0.00035616,120]
[364642518,1749175535852,152.37,0.00035616,120]
[364642527,1749175543382,203.16,0.00035616,120]
[364642528,1749175603260,10468.59865827,0.000356,120]
[364642529,1749175607508,484.1,0.00035616,120]
[364642530,1749175611600,500.0,0.0003561,120]
[364642531,1749175612686,200.0,0.00035616,120]
[364642532,1749175633935,1119.0,0.00035616,120]
[364642533,1749175638658,482.80551465,0.000356,120]
[364642535,1749175734701,187.06263511,0.0002426,2]
[364642536,1749175734724,1123.03228489,0.0002426,2]
[364642538,1749175831887,-432.32632991,0.00024505,2]
[364642539,1749175831994,-659.41944009,0.00024505,2]
[364642540,1749175832004,-444.79212376,0.00024932,2]
[364642541,1749175832047,-55.20787624,0.00024932,2]
[364642542,1749175832058,-206.0,0.00025602,2]
[364642543,1749175832067,-301.7,0.0002611,2]
[364642544,1749175832077,-111.84631236,0.00026349,2]
[364642545,1749175832093,-191.38368764,0.00026349,2]
[364642546,1749175832103,-304.52,0.00026349,2]
[364642547,1749175832112,-533.39329999,0.00026564,2]
[364642548,1749175832133,-330.57670001,0.00026564,2]
[364642549,1749175832143,-997.85889684,0.00027122,2]
[364642550,1749175832175,-2.14110316,0.00027122,2]
[364642551,1749175832185,-152.0,0.00027172,3]
[364642552,1749175832195,-300.83,0.00027911,2]
[364642553,1749175832204,-151.43847888,0.00028181,2]
[364642600,1749175837921,-644.74152112,0.00028181,2]
[364642601,1749175837931,-29.47379863,0.00028181,2]
[364642602,1749175837964,-766.70620137,0.00028181,2]
[364642603,1749175837974,-194.1602672,0.00028181,2]
[364642610,1749175838082,-727.1397328,0.00028181,2]
[364642612,1749175838091,-796.18,0.00028181,2]
[364642614,1749175838101,-921.68,0.00028181,2]
[364642616,1749175838110,-152.0,0.00028329,4]
[364642618,1749175838120,-157.62,0.00028382,2]
[364642620,1749175838131,-150.0,0.0002842,7]
[364642622,1749175838140,-158.08,0.00028437,2]
[364642624,1749175838151,-843.93072853,0.00028446,2]
[364642631,1749175838200,-156.06927147,0.00028446,2]
[364642633,1749175838210,-169.41,0.00028458,2]
[364642634,1749175838220,-226.27,0.00028483,2]
[364642636,1749175838230,-1695.56,0.00028514,30]
[364642637,1749175838240,-163.2,0.00028556,2]
[364642638,1749175838249,-163.2,0.00028556,2]
[364642639,1749175838260,-23900.0,0.00028572,2]
[364642640,1749175838269,-153.58717508,0.00028644,2]
[364642641,1749175838279,-151.0,0.00028644,2]
[364642642,1749175838288,-157.78955446,0.00028644,2]
[364642643,1749175838298,-551.93717546,0.00028644,2]
[364642644,1749175838310,-1000.0,0.00028644,2]
[364642645,1749175838324,-153.32611453,0.00028644,2]
[364642647,1749175838334,-800.0,0.00028644,2]
[364642648,1749175838343,-800.0,0.00028644,2]
[364642650,1749175838355,-309.25342495,0.00028644,2]
[364642652,1749175838364,-207.4,0.00028644,2]
[364642654,1749175838373,-651.3,0.00028656,2]
[364642656,1749175838383,-302.34,0.00028734,2]
[364642658,1749175838394,-863.97,0.00028827,2]
[364642660,1749175838403,-200.18345999,0.000289,20]
[364642662,1749175838412,-160.54,0.00029,2]
[364642663,1749175838422,-150.0,0.00029006,2]
[364642665,1749175838431,-500.0,0.00029008,2]
[364642666,1749175838440,-500.0,0.00029008,2]
[364642667,1749175838449,-500.0,0.00029008,2]
[364642668,1749175838459,-500.0,0.00029008,2]
[364642669,1749175838469,-500.0,0.00029008,2]
[364642670,1749175838479,-422.58540061,0.00029008,2]
[364642671,1749175838488,-233.82466012,0.00029008,2]
[364642672,1749175838498,-500.0,0.00029008,2]
[364642673,1749175838507,-500.0,0.00029008,2]
[364642674,1749175838517,-500.0,0.00029008,2]
[364642675,1749175838526,-500.0,0.00029008,2]
[364642676,1749175838536,-500.0,0.00029008,2]
[364642677,1749175838546,-500.0,0.00029008,2]
[364642678,1749175838556,-500.0,0.00029008,2]
[364642679,1749175838567,-500.0,0.00029008,2]
[364642680,1749175838577,-500.0,0.00029008,2]
[364642681,1749175838587,-500.0,0.00029008,2]
[364642682,1749175838597,-500.0,0.00029008,2]
[364642683,1749175838606,-500.0,0.00029008,2]
[364642684,1749175838615,-500.0,0.00029008,2]
[364642685,1749175838624,-500.0,0.00029008,2]
[364642686,1749175838633,-500.0,0.00029008,2]
[364642687,1749175838642,-368.9264156,0.00029008,2]
[364642688,1749175838651,-500.0,0.00029008,2]
[364642689,1749175838661,-500.0,0.00029008,2]
[364642690,1749175838670,-511.98385789,0.00029008,2]
[364642691,1749175838679,-500.0,0.00029008,2]
[364642692,1749175838700,-500.0,0.00029008,2]
[364642693,1749175838714,-518.62747137,0.00029008,2]
[364642694,1749175838723,-434.52,0.00029009,2]
[364642695,1749175838733,-14052.06,0.00029009,2]
[364642697,1749175838743,-12662.38,0.00029009,2]
[364642698,1749175838752,-206.0,0.00029042,7]
[364642699,1749175838762,-150.0,0.00029068,7]
[364642700,1749175838772,-503.4807735,0.00029068,7]
[364642701,1749175838782,-236.73027376,0.00029099,2]
[364642702,1749175838791,-1592.36,0.0002914,2]
[364642703,1749175838801,-796.18,0.0002914,2]
[364642704,1749175838810,-460.84,0.00029164,2]
[364642705,1749175838820,-796.18,0.00029164,2]
[364642706,1749175838830,-200.18345998,0.00029245,20]
[364642707,1749175838839,-527.421282,0.00029259,6]
[364642708,1749175838849,-150.0,0.0002944,2]
[364642709,1749175838858,-152.0,0.00029485,5]
[364642710,1749175838867,-300.0,0.000295,10]
[364642711,1749175838877,-1091.74577,0.00029505,2]
[364642712,1749175838887,-300.28,0.00029531,2]
[364642713,1749175838896,-300.86,0.00029531,2]
[364642714,1749175838906,-150.0,0.00029557,2]
[364642715,1749175838916,-200.18345998,0.0002959,21]
[364642716,1749175838925,-170.08,0.00029596,2]
[364642717,1749175838935,-700.0,0.000296,10]
[364642718,1749175838944,-150.0,0.00029636,2]
[364642719,1749175838954,-302.11,0.0002965,2]
[364642720,1749175838964,-150.0,0.00029658,2]
[364642721,1749175838974,-150.0,0.00029663,2]
[364642722,1749175838983,-150.0,0.00029679,2]
[364642723,1749175838992,-1000.0,0.000297,10]
[364642724,1749175839001,-150.0,0.00029766,2]
[364642725,1749175839010,-150.0,0.00029783,2]
[364642726,1749175839019,-1400.0,0.000298,10]
[364642727,1749175839029,-190.15467414,0.00029808,30]
[364642728,1749175839038,-1000.0,0.00029833,2]
[364642730,1749175839048,-150.0,0.00029841,2]
[364642731,1749175839057,-150.0,0.00029845,2]
[364642732,1749175839067,-150.0,0.00029848,2]
[364642733,1749175839077,-150.0,0.00029858,2]
[364642734,1749175839087,-150.0,0.00029892,2]
[364642735,1749175839097,-150.0,0.00029895,2]
[364642736,1749175839106,-1700.0,0.000299,10]
[364642737,1749175839116,-1158.0,0.00029906,2]
[364642738,1749175839126,-857.309,0.00029906,2]
[364642739,1749175839135,-296.506,0.00029906,2]
[364642740,1749175839145,-4081.0,0.00029906,2]
[364642741,1749175839155,-7017.0,0.00029906,2]
[364642742,1749175839164,-150.0,0.00029906,2]
[364642743,1749175839174,-226.27,0.00029907,2]
[364642744,1749175839186,-200.0,0.00029922,2]
[364642745,1749175839195,-200.0,0.00029923,2]
[364642746,1749175839205,-200.18345998,0.00029934,22]
[364642747,1749175839215,-150.0,0.00029974,2]
[364642748,1749175839224,-150.0,0.00029995,2]
[364642749,1749175839233,-6095.17,0.0003,7]
[364642750,1749175839243,-1000.0,0.0003,2]
[364642751,1749175839253,-175.0,0.0003,14]
[364642752,1749175839263,-828.541,0.0003,2]
[364642753,1749175839273,-1080.95575727,0.0003,2]
[364642754,1749175839282,-2500.0,0.0003,2]
[364642755,1749175839291,-150.73,0.00030001,2]
[364642756,1749175839301,-150.7,0.00030001,2]
[364642757,1749175839313,-150.0,0.00030001,2]
[364642758,1749175839322,-735.303,0.00030002,30]
[364642759,1749175839331,-156.587,0.00030013,2]
[364642760,1749175839340,-215.0738,0.00030013,2]
[364642761,1749175839350,-175.62183699,0.00030034,2]
[364642762,1749175839360,-500.0,0.00030044,2]
[364642763,1749175839369,-1080.95575718,0.00030046,2]
[364642764,1749175839380,-520.3287879,0.00030047,2]
[364642765,1749175839391,-217.15061385,0.00030047,2]
[364642766,1749175839401,-394.3458,0.00030048,2]
[364642767,1749175839410,-150.0,0.00030052,2]
[364642768,1749175839419,-150.0,0.00030056,2]
[364642769,1749175839429,-239.88753945,0.00030064,2]
[364642770,1749175839439,-755.25204556,0.00030064,2]
[364642771,1749175839451,-175.62183699,0.00030064,2]
[364642772,1749175839461,-403.27,0.0003009,2]
[364642773,1749175839471,-1080.95575718,0.00030093,2]
[364642774,1749175839481,-2000.0,0.000301,2]
[364642776,1749175839491,-113607.89746152,0.000301,2]
[364642777,1749175839501,-616.39032927,0.000301,2]
[364642778,1749175839511,-1336.90038806,0.000301,2]
[364642779,1749175839522,-520.32878788,0.00030104,2]
[364642780,1749175839531,-403.27,0.00030123,2]
[364642781,1749175839542,-12563.9981136,0.00030134,2]
[364642782,1749175839551,-403.27,0.00030134,2]
[364642783,1749175839561,-403.27,0.00030134,2]
[364642784,1749175839571,-150.0,0.00030134,2]
[364642785,1749175839579,-223.76917698,0.00030136,2]
[364642786,1749175839589,-283.63290493,0.00030136,2]
[364642787,1749175839598,-184.70986163,0.00030136,2]
[364642788,1749175839608,-156.11201725,0.00030136,2]
[364642789,1749175839619,-356.59531763,0.00030136,2]
[364642790,1749175839628,-37691.9943408,0.00030137,2]
[364642791,1749175839638,-403.27,0.00030137,2]
[364642792,1749175839647,-190.15467414,0.00030137,30]
[364642793,1749175839657,-205.60041799,0.00030137,30]
[364642794,1749175839667,-161.44,0.00030137,80]
[364642795,1749175839677,-1080.95575718,0.00030139,2]
[364642796,1749175839686,-500.0,0.00030143,7]
[364642797,1749175839696,-75383.9886816,0.00030144,2]
[364642798,1749175839706,-171.23931783,0.00030146,7]
[364642799,1749175839716,-75383.9886816,0.00030147,2]
[364642800,1749175839726,-65807.2581833,0.00030147,2]
[364642801,1749175839736,-154.55,0.00030147,2]
[364642802,1749175839747,-150.0,0.00030148,2]
[364642803,1749175839757,-12563.9981136,0.00030148,2]
[364642805,1749175839767,-200.0,0.0003015,7]
[364642807,1749175839776,-150.0,0.00030151,2]
[364642808,1749175839786,-354.86684064,0.00030153,7]
[364642809,1749175839795,-87947.9867952,0.00030154,2]
[364642810,1749175839805,-197421.77455,0.00030154,2]
[364642811,1749175839814,-14606.2783993,0.00030155,2]
[364642812,1749175839823,-5905.0289204,0.00030157,2]
[364642813,1749175839833,-360.8416061,0.00030157,2]
[364642814,1749175839842,-124507.2988356,0.00030157,2]
[364642815,1749175839851,-234.768306,0.00030158,7]
[364642816,1749175839863,-151.0,0.00030158,7]
[364642817,1749175839873,-151.0,0.00030158,7]
[364642818,1749175839882,-151.0,0.00030158,7]
[364642819,1749175839892,-151.0,0.00030158,7]
[364642820,1749175839902,-520.32878788,0.0003016,2]
[364642821,1749175839911,-500.0,0.00030163,2]
[364642822,1749175839920,-150.0,0.00030163,2]
[364642823,1749175839930,-3347.76646586,0.00030164,6]
[364642824,1749175839939,-1048602.29182773,0.00030164,6]
[364642825,1749175839948,-203.652477,0.00030164,7]
[364642826,1749175839957,-203.652477,0.00030164,7]
[364642827,1749175839967,-198.673403,0.00030164,7]
[364642828,1749175839977,-151.0,0.00030164,7]
[364642829,1749175839986,-151.0,0.00030164,7]
[364642830,1749175839995,-151.0,0.00030164,7]
[364642831,1749175840005,-151.0,0.00030164,7]
[364642832,1749175840015,-151.0,0.00030164,7]
[364642833,1749175840024,-151.0,0.00030164,7]
[364642834,1749175840034,-480.0,0.00030164,7]
[364642835,1749175840043,-151.0,0.00030164,7]
[364642836,1749175840053,-151.0,0.00030164,7]
[364642837,1749175840062,-151.0,0.00030164,7]
[364642838,1749175840072,-151.0,0.00030164,7]
[364642839,1749175840082,-195.16024903,0.00030164,7]
[364642840,1749175840092,-151.0,0.00030164,7]
[364642841,1749175840101,-151.0,0.00030164,7]
[364642842,1749175840111,-408.69859284,0.00030164,7]
[364642843,1749175840121,-480.0,0.00030164,7]
[364642844,1749175840131,-480.0,0.00030164,7]
[364642845,1749175840141,-521.92494463,0.00030164,7]
[364642846,1749175840151,-151.0,0.00030164,7]
[364642847,1749175840161,-480.0,0.00030164,7]
[364642848,1749175840171,-151.0,0.00030164,7]
[364642849,1749175840180,-490.9305301,0.00030164,7]
[364642850,1749175840190,-151.0,0.00030164,7]
[364642851,1749175840200,-480.0,0.00030164,7]
[364642852,1749175840210,-487.35842075,0.00030164,7]
[364642853,1749175840220,-196.58725767,0.00030164,7]
[364642854,1749175840230,-480.0,0.00030164,7]
[364642855,1749175840240,-480.0,0.00030164,7]
[364642856,1749175840250,-151.62552,0.00030164,7]
[364642857,1749175840261,-471.86078606,0.00030164,7]
[364642858,1749175840274,-489.13619143,0.00030164,7]
[364642859,1749175840289,-480.0,0.00030164,7]
[364642860,1749175840299,-336.52710451,0.00030164,7]
[364642861,1749175840314,-480.0,0.00030164,7]
[364642862,1749175840325,-487.24265669,0.00030164,7]
[364642863,1749175840335,-866.58,0.00030164,7]
[364642864,1749175840345,-480.0,0.00030164,7]
[364642865,1749175840355,-480.0,0.00030164,7]
[364642866,1749175840365,-480.0,0.00030164,7]
[364642867,1749175840377,-472.09909013,0.00030164,7]
[364642868,1749175840388,-490.76457102,0.00030164,7]
[364642869,1749175840399,-497.16955935,0.00030164,7]
[364642870,1749175840409,-365.30662621,0.00030164,7]
[364642871,1749175840419,-480.0,0.00030164,7]
[364642872,1749175840429,-480.0,0.00030164,7]
[364642873,1749175840438,-480.0,0.00030164,7]
[364642874,1749175840448,-480.0,0.00030164,7]
[364642875,1749175840457,-480.0,0.00030164,7]
[364642876,1749175840467,-488.69788449,0.00030164,7]
[364642877,1749175840476,-480.0,0.00030164,2]
[364642878,1749175840486,-480.0,0.00030164,7]
[364642879,1749175840495,-480.0,0.00030164,7]
[364642881,1749175840506,-468.26953635,0.00030164,7]
[364642882,1749175840515,-480.0,0.00030164,7]
[364642883,1749175840525,-485.82490159,0.00030164,7]
[364642884,1749175840534,-552.11576029,0.00030164,7]
[364642885,1749175840544,-480.0,0.00030164,7]
[364642886,1749175840555,-480.0,0.00030164,7]
[364642888,1749175840564,-480.0,0.00030164,7]
[364642889,1749175840573,-480.0,0.00030164,7]
[364642890,1749175840583,-480.0,0.00030164,7]
[364642891,1749175840593,-480.0,0.00030164,7]
[364642892,1749175840602,-490.87061768,0.00030164,7]
[364642893,1749175840612,-485.47098484,0.00030164,7]
[364642894,1749175840622,-265.860366,0.00030164,7]
[364642895,1749175840632,-480.0,0.00030164,7]
[364642896,1749175840642,-480.0,0.00030164,7]
[364642897,1749175840652,-555.17860144,0.00030164,7]
[364642898,1749175840662,-158.841649,0.00030164,7]
[364642899,1749175840671,-482.2143295,0.00030164,7]
[364642900,1749175840681,-265.860366,0.00030164,7]
[364642901,1749175840690,-513.11890785,0.00030164,7]
[364642902,1749175840699,-493.25963774,0.00030164,7]
[364642903,1749175840709,-158.841649,0.00030164,7]
[364642904,1749175840719,-489.63464675,0.00030164,7]
[364642905,1749175840728,-422.8077953,0.00030164,7]
[364642906,1749175840738,-480.0,0.00030164,7]
[364642907,1749175840747,-481.79838109,0.00030164,7]
[364642908,1749175840758,-480.0,0.00030164,7]
[364642909,1749175840768,-151.0,0.00030164,7]
[364642910,1749175840778,-494.547597,0.00030164,7]
[364642911,1749175840788,-522.17166458,0.00030164,7]
[364642912,1749175840798,-480.0,0.00030164,2]
[364642913,1749175840808,-480.0,0.00030164,7]
[364642914,1749175840818,-151.0,0.00030164,7]
[364642915,1749175840828,-480.0,0.00030164,7]
[364642916,1749175840838,-485.85262051,0.00030164,7]
[364642917,1749175840848,-483.26868124,0.00030164,7]
[364642918,1749175840858,-480.0,0.00030164,7]
[364642919,1749175840868,-721.95,0.00030164,7]
[364642920,1749175840879,-488.26407936,0.00030164,7]
[364642921,1749175840888,-151.0,0.00030164,7]
[364642922,1749175840901,-489.78113232,0.00030164,7]
[364642923,1749175840911,-492.39314313,0.00030164,7]
[364642924,1749175840923,-300.0,0.00030164,7]
[364642925,1749175840933,-289.77101876,0.00030164,7]
[364642926,1749175840943,-480.0,0.00030164,7]
[364642927,1749175840953,-480.0,0.00030164,7]
[364642928,1749175840962,-368.003349,0.00030164,7]
[364642929,1749175840972,-480.0,0.00030164,7]
[364642930,1749175840982,-480.0,0.00030164,7]
[364642931,1749175840991,-480.0,0.00030164,7]
[364642932,1749175841001,-487.53173442,0.00030164,7]
[364642933,1749175841011,-368.003349,0.00030164,7]
[364642934,1749175841020,-488.19611162,0.00030164,7]
[364642935,1749175841030,-480.0,0.00030164,7]
[364642936,1749175841039,-187.144878,0.00030164,7]
[364642937,1749175841048,-480.0,0.00030164,7]
[364642938,1749175841058,-1283.47,0.00030164,7]
[364642939,1749175841067,-187.144878,0.00030164,7]
[364642940,1749175841077,-151.0,0.00030164,7]
[364642941,1749175841087,-480.0,0.00030164,7]
[364642942,1749175841096,-480.0,0.00030164,7]
[364642943,1749175841107,-449.30207386,0.00030164,7]
[364642944,1749175841116,-151.0,0.00030164,7]
[364642945,1749175841126,-482.23540605,0.00030164,7]
[364642946,1749175841359,-474.80200705,0.00030164,7]
[364642947,1749175841370,-151.254161,0.00030164,7]
[364642948,1749175841379,-487.91754776,0.00030164,7]
[364642949,1749175841391,-151.0,0.00030164,7]
[364642950,1749175841402,-480.0,0.00030164,7]
[364642951,1749175841412,-490.04368989,0.00030164,7]
[364642952,1749175841421,-500.0,0.00030164,7]
[364642953,1749175841430,-150.0,0.00030164,7]
[364642954,1749175841439,-150.0,0.00030164,7]
[364642955,1749175841447,-480.64535471,0.00030164,7]
[364642956,1749175841456,-480.0,0.00030164,7]
[364642957,1749175841465,-498.6571033,0.00030164,7]
[364642958,1749175841475,-500.31167585,0.00030164,7]
[364642959,1749175841484,-486.03939171,0.00030164,7]
[364642960,1749175841493,-150.0,0.00030164,7]
[364642961,1749175841502,-481.02749168,0.00030164,7]
[364642962,1749175841511,-480.0,0.00030164,7]
[364642963,1749175841522,-480.0,0.00030164,7]
[364642964,1749175841531,-1000.0,0.00030164,15]
[364642965,1749175841540,-151.0,0.00030164,7]
[364642966,1749175841549,-497.85275427,0.00030164,7]
[364642967,1749175841558,-202.68423922,0.00030164,7]
[364642968,1749175841568,-480.0,0.00030164,7]
[364642969,1749175841577,-480.0,0.00030164,7]
[364642970,1749175841587,-404.32452553,0.00030164,7]
[364642971,1749175841596,-493.44260344,0.00030164,7]
[364642972,1749175841605,-494.8710418,0.00030164,7]
[364642973,1749175841615,-496.54214851,0.00030164,7]
[364642974,1749175841624,-507.4897949,0.00030164,7]
[364642975,1749175841633,-480.0,0.00030164,7]
[364642976,1749175841642,-480.0,0.00030164,7]
[364642977,1749175841654,-480.0,0.00030164,7]
[364642978,1749175841664,-480.0,0.00030164,7]
[364642979,1749175841673,-496.74532369,0.00030164,7]
[364642980,1749175841683,-151.0,0.00030164,7]
[364642981,1749175841692,-496.99596673,0.00030164,7]
[364642982,1749175841701,-498.7359734,0.00030164,7]
[364642983,1749175841710,-482.95726208,0.00030164,7]
[364642984,1749175841720,-483.4190331,0.00030164,7]
[364642985,1749175841730,-480.0,0.00030164,7]
[364642986,1749175841739,-480.0,0.00030164,7]
[364642987,1749175841748,-489.2446573,0.00030164,7]
[364642988,1749175841757,-489.83473255,0.00030164,7]
[364642989,1749175841767,-485.31481093,0.00030164,7]
[364642990,1749175841776,-480.0,0.00030164,7]
[364642991,1749175841785,-487.91355193,0.00030164,7]
[364642992,1749175841794,-481.55906579,0.00030164,7]
[364642993,1749175841803,-485.74498494,0.00030164,7]
[364642994,1749175841812,-480.0,0.00030164,7]
[364642995,1749175841821,-497.18335319,0.00030164,7]
[364642996,1749175841830,-498.96160582,0.00030164,7]
[364642997,1749175841839,-480.78892834,0.00030164,7]
[364642998,1749175841848,-485.6065737,0.00030164,7]
[364642999,1749175841857,-480.0,0.00030164,7]
[364643000,1749175841867,-492.22967703,0.00030164,7]
[364643001,1749175841876,-480.0,0.00030164,7]
[364643002,1749175841884,-487.77524339,0.00030164,7]
[364643003,1749175841894,-484.55550002,0.00030164,7]
[364643004,1749175841906,-482.10954878,0.00030164,7]
[364643005,1749175841915,-487.73057646,0.00030164,7]
[364643006,1749175841925,-480.0,0.00030164,7]
[364643007,1749175841935,-151.0,0.00030164,7]
[364643008,1749175841945,-480.53432489,0.00030164,7]
[364643009,1749175841955,-480.0,0.00030164,7]
[364643010,1749175841964,-491.50050477,0.00030164,7]
[364643011,1749175841974,-480.0,0.00030164,7]
[364643012,1749175841984,-487.6087234,0.00030164,7]
[364643013,1749175841994,-482.6790354,0.00030164,7]
[364643014,1749175842003,-480.0,0.00030164,7]
[364643015,1749175842012,-480.0,0.00030164,7]
[364643016,1749175842021,-480.0,0.00030164,7]
[364643017,1749175842031,-488.82154599,0.00030164,7]
[364643018,1749175842040,-494.81716786,0.00030164,7]
[364643019,1749175842049,-491.22145578,0.00030164,7]
[364643020,1749175842058,-480.0,0.00030164,7]
[364643021,1749175842068,-492.23874236,0.00030164,7]
[364643022,1749175842078,-483.25585743,0.00030164,7]
[364643023,1749175842088,-480.0,0.00030164,7]
[364643024,1749175842098,-480.0,0.00030164,7]
[364643025,1749175842108,-480.0,0.00030164,7]
[364643026,1749175842117,-480.0,0.00030164,7]
[364643027,1749175842127,-486.36135714,0.00030164,7]
[364643028,1749175842136,-609.8,0.00030164,7]
[364643029,1749175842147,-498.6407208,0.00030164,7]
[364643030,1749175842363,-487.54297005,0.00030164,7]
[364643031,1749175842373,-588.44,0.00030164,7]
[364643032,1749175842382,-497.08054199,0.00030164,7]
[364643033,1749175842393,-494.17906345,0.00030164,7]
[364643034,1749175842404,-480.0,0.00030164,7]
[364643035,1749175842413,-484.81077877,0.00030164,7]
[364643036,1749175842422,-284.224494,0.00030164,7]
[364643037,1749175842432,-485.69882971,0.00030164,7]
[364643038,1749175842441,-443.62402992,0.00030164,7]
[364643039,1749175842450,-480.0,0.00030164,7]
[364643040,1749175842459,-483.32356621,0.00030164,7]
[364643041,1749175842468,-499.77647332,0.00030164,7]
[364643042,1749175842478,-284.224494,0.00030164,7]
[364643043,1749175842488,-480.0,0.00030164,7]
[364643044,1749175842497,-480.03202686,0.00030164,7]
[364643045,1749175842507,-488.57982902,0.00030164,7]
[364643046,1749175842517,-251.61837732,0.00030164,7]
[364643047,1749175842526,-480.0,0.00030164,7]
[364643048,1749175842535,-495.83485887,0.00030164,7]
[364643049,1749175842545,-480.0,0.00030164,7]
[364643050,1749175842554,-480.0,0.00030164,7]
[364643051,1749175842564,-151.0,0.00030164,7]
[364643052,1749175842573,-671.35,0.00030164,7]
[364643053,1749175842582,-506.39743732,0.00030164,7]
[364643054,1749175842592,-480.0,0.00030164,7]
[364643055,1749175842601,-443.47294183,0.00030164,7]
[364643056,1749175842611,-497.3887721,0.00030164,7]
[364643057,1749175842620,-483.60662542,0.00030164,7]
[364643058,1749175842629,-151.0,0.00030164,7]
[364643059,1749175842639,-480.0,0.00030164,7]
[364643060,1749175842649,-391.5002071,0.00030164,7]
[364643061,1749175842658,-484.95122225,0.00030164,7]
[364643062,1749175842667,-480.0,0.00030164,7]
[364643063,1749175842677,-152.014466,0.00030164,7]
[364643064,1749175842686,-480.0,0.00030164,7]
[364643065,1749175842695,-154.288431,0.00030164,7]
[364643066,1749175842704,-151.0,0.00030164,7]
[364643067,1749175842713,-485.41753848,0.00030164,7]
[364643068,1749175842723,-151.0,0.00030164,7]
[364643069,1749175842732,-499.36,0.00030164,7]
[364643070,1749175842741,-480.0,0.00030164,7]
[364643071,1749175842750,-484.73129032,0.00030164,7]
[364643072,1749175842760,-154.288431,0.00030164,7]
[364643073,1749175842769,-485.80195335,0.00030164,7]
[364643074,1749175842778,-500.29231501,0.00030164,7]
[364643075,1749175842787,-480.0,0.00030164,7]
[364643076,1749175842799,-484.92502039,0.00030164,7]
[364643077,1749175842808,-480.0,0.00030164,7]
[364643078,1749175842817,-480.0,0.00030164,7]
[364643079,1749175842826,-602.79866779,0.00030164,7]
[364643080,1749175842835,-504.32,0.00030164,2]
[364643081,1749175842844,-536.86565212,0.00030164,7]
[364643082,1749175842854,-480.0,0.00030164,7]
[364643083,1749175842863,-480.0,0.00030164,7]
[364643084,1749175842872,-480.0,0.00030164,7]
[364643085,1749175842881,-563.7,0.00030164,7]
[364643086,1749175842890,-151.0,0.00030164,7]
[364643087,1749175842900,-506.97641665,0.00030164,7]
[364643088,1749175842909,-480.0,0.00030164,7]
[364643089,1749175842918,-480.0,0.00030164,7]